[Event "POL-chT 2nd League-4 2020"]
[Site "Poronin"]
[Date "2020.09.09"]
[Round "5.11"]
[White "Boruta, Dawid"]
[Black "Glatty, Zbigniew"]
[Result "1-0"]
[ECO "A03"]
[WhiteElo "1822"]
[BlackElo "1857"]
[Annotator "NA RC"]
[PlyCount "95"]
[EventDate "2020.09.05"]
[EventType "team-tourn"]
[EventCountry "POL"]
[SourceTitle "playchess.com"]
[Source "ChessBase"]
[SourceQuality "1"]
[TimeControl "40/5400+30:900+30"]

1. f4 {[%emt 0:00:00]} d5 {[%emt 0:00:00]} 2. Nf3 {[%emt 0:00:00]} g6 {[%emt 0:00:00]} 3. g3 {[%emt 0:00:00]} Bg7 {[%emt 0:00:00]} 4. Bg2 {[%emt 0:00:00]} b6 {[%emt 0:02:00]} 5. O-O {[%emt 0:02:10]} Bb7 {[%emt 0:00:08]} 6. c3 {[%emt 0:00:58]} Nh6 {[%emt 0:01:35]} 7. d3 {[%emt 0:07:42]} Nf5 {[%emt 0:04:34]} 8. e4 {[%emt 0:11:45]} dxe4 {[%emt 0:03:11]} 9. Ng5 {[%emt 0:01:18]} Nd6 {[%emt 0:04:27]} 10. Nxe4 {[%emt 0:04:08]} Nxe4 {[%emt 0:04:10]} 11. dxe4 {[%emt 0:00:24]} Qxd1 {[%emt 0:00:14]} 12. Rxd1 {[%emt 0:00:05]} Nd7 {[%emt 0:05:37]} 13. Be3 {[%emt 0:04:57]} O-O-O {[%emt 0:07:35]} 14. Nd2 {[%emt 0:13:08]} Nf6 {[%emt 0:06:18]} 15. Bd4 {[%emt 0:00:59]} Rhg8 {[%emt 0:04:43]} 16. Bxf6 {[%emt 0:09:11]} Bxf6 {[%emt 0:00:12]} 17. e5 {[%emt 0:06:52]} Bg7 {[%emt 0:00:51]} 18. Nf3 {[%emt 0:03:49]} f6 {[%emt 0:14:16]} 19. Bh3+ {[%emt 0:12:01]} Kb8 {[%emt 0:01:57]} 20. Rxd8+ {[%emt 0:00:48]} Rxd8 {[%emt 0:00:18]} 21. Nd4 {[%emt 0:00:02]} Rg8 {[%emt 0:17:55]} 22. Be6 {[%emt 0:03:57]} Rh8 {[%emt 0:01:16]} 23. Re1 {[%emt 0:03:15]} fxe5 {[%emt 0:01:59]} 24. fxe5 {[%emt 0:00:08]} c5 {[%emt 0:00:57]} 25. Nb3 {[%emt 0:03:10]} Rd8 {[%emt 0:02:14]} 26. Kf2 {[%emt 0:02:11]} a5 {[%emt 0:01:19]} 27. Re2 {[%emt 0:03:43]} a4 {[%emt 0:01:33]} 28. Nd2 {[%emt 0:02:11]} Bxe5 {[%emt 0:02:06]} 29. Nc4 {[%emt 0:02:42]} Bc7 {[%emt 0:00:14]} 30. Bg4 {[%emt 0:01:30]} b5 {[%emt 0:05:37]} 31. Nd2 {[%emt 0:01:11]} b4 {[%emt 0:02:42]} 32. c4 {[%emt 0:01:06]} Rd4 {[%emt 0:02:34]} 33. Be6 {[%emt 0:00:37]} a3 {[%emt 0:00:36]} 34. bxa3 {[%emt 0:00:18]} bxa3 {[%emt 0:00:07]} 35. Nb3 {[%emt 0:00:34]} Rd8 {[%emt 0:01:02]} 36. Ke1 {[%emt 0:00:23]} Bd6 {[%emt 0:00:46]} 37. Re3 {[%emt 0:00:24]} Kc7 {[%emt 0:00:57]} 38. Na5 {[%emt 0:00:30]} Bh1 {[%emt 0:00:37]} 39. Ke2 {[%emt 0:00:49]} Ra8 {[%emt 0:00:45]} 40. Nb3 {[%emt 0:00:00]} Rb8 {[%emt 0:00:00]} 41. Kd3 {[%emt 0:05:15]} Rf8 {[%emt 0:03:30]} 42. Ke2 {[%emt 0:02:53]} Bg2 {[%emt 0:02:12]} 43. Nd2 {[%emt 0:00:08]} Ra8 {[%emt 0:00:46]} 44. Kf2 {[%emt 0:01:09]} Bh1 {[%emt 0:00:36]} 45. Nb1 {[%emt 0:00:15]} Rb8 {[%emt 0:01:53]} 46. Nxa3 {[%emt 0:00:22]} Rb2+ {[%emt 0:00:20]} 47. Re2 {[%emt 0:00:08]} Rxe2+ {[%emt 0:00:09]} 48. Kxe2 {[%emt 0:00:02]} 1-0

[Event "POL-chT 2nd League-4 2020"]
[Site "Poronin"]
[Date "2020.09.09"]
[Round "5.18"]
[White "Dabrowska, Aleksandra"]
[Black "Stebel, Agata"]
[Result "1/2-1/2"]
[ECO "B34"]
[WhiteElo "1566"]
[BlackElo "1871"]
[Annotator "NA RC"]
[PlyCount "94"]
[EventDate "2020.09.05"]
[EventType "team-tourn"]
[EventCountry "POL"]
[SourceTitle "playchess.com"]
[Source "ChessBase"]
[SourceQuality "1"]
[TimeControl "40/5400+30:900+30"]

1. e4 {[%emt 0:00:00]} c5 {[%emt 0:00:00]} 2. Nf3 {[%emt 0:00:00]} Nc6 {[%emt 0:00:00]} 3. d4 {[%emt 0:00:00]} cxd4 {[%emt 0:00:01]} 4. Nxd4 {[%emt 0:00:00]} Nf6 {[%emt 0:00:12]} 5. Nc3 {[%emt 0:00:02]} e5 {[%emt 0:00:09]} 6. Nb3 {[%emt 0:01:28]} Bb4 {[%emt 0:01:29]} 7. Bd3 {[%emt 0:02:21]} d5 {[%emt 0:01:48]} 8. exd5 {[%emt 0:01:10]} Nxd5 {[%emt 0:01:13]} 9. Bd2 {[%emt 0:00:22]} Nxc3 {[%emt 0:01:47]} 10. bxc3 {[%emt 0:00:18]} Be7 {[%emt 0:01:53]} 11. O-O {[%emt 0:00:50]} O-O {[%emt 0:02:16]} 12. Re1 {[%emt 0:01:39]} Be6 {[%emt 0:06:27]} 13. Qh5 {[%emt 0:03:38]} g6 {[%emt 0:19:59]} 14. Qe2 {[%emt 0:02:14]} Qc7 {[%emt 0:06:04]} 15. Bh6 {[%emt 0:05:58]} Rfe8 {[%emt 0:04:22]} 16. Qf3 {[%emt 0:01:57]} f5 {[%emt 0:03:23]} 17. Bb5 {[%emt 0:03:00]} e4 {[%emt 0:06:21]} 18. Qe3 {[%emt 0:06:57]} Bf6 {[%emt 0:03:29]} 19. Bxc6 {[%emt 0:03:14]} Qxc6 {[%emt 0:02:27]} 20. Nd4 {[%emt 0:00:41]} Qc4 {[%emt 0:05:21]} 21. a4 {[%emt 0:05:01]} Bf7 {[%emt 0:03:07]} 22. Reb1 {[%emt 0:04:44]} Re7 {[%emt 0:06:27]} 23. Bg5 {[%emt 0:02:01]} Qa6 {[%emt 0:08:42]} 24. h3 {[%emt 0:07:32]} Rc8 {[%emt 0:04:49]} 25. Nb5 {[%emt 0:03:21]} Bxg5 {[%emt 0:02:43]} 26. Qxg5 {[%emt 0:00:08]} Rd7 {[%emt 0:00:51]} 27. Qe3 {[%emt 0:03:56]} Qa5 {[%emt 0:00:42]} 28. Qxa7 {[%emt 0:08:56]} Qxa7 {[%emt 0:00:14]} 29. Nxa7 Rxc3 {[%emt 0:01:04]} 30. Rb2 {[%emt 0:00:53]} Rd2 {[%emt 0:00:37]} 31. Rab1 {[%emt 0:01:19]} Bd5 {[%emt 0:00:33]} 32. Nb5 {[%emt 0:00:56]} Rcxc2 {[%emt 0:00:42]} 33. Rxc2 {[%emt 0:00:09]} Rxc2 {[%emt 0:00:03]} 34. Rd1 {[%emt 0:00:32]} Rc5 {[%emt 0:01:08]} 35. Nd6 {[%emt 0:02:04]} Ra5 {[%emt 0:01:10]} 36. Nxb7 {[%emt 0:02:06]} Bxb7 {[%emt 0:00:38]} 37. Rd8+ {[%emt 0:00:03]} Kg7 {[%emt 0:00:33]} 38. Rd7+ {[%emt 0:00:05]} Kh6 {[%emt 0:01:02]} 39. Rxb7 {[%emt 0:00:04]} Rxa4 {[%emt 0:00:10]} 40. g3 {[%emt 0:00:00]} Ra1+ {[%emt 0:00:00]} 41. Kg2 {[%emt 0:00:49]} Ra2 {[%emt 0:02:48]} 42. Kf1 {[%emt 0:01:42]} g5 {[%emt 0:02:25]} 43. Re7 {[%emt 0:05:19]} Kg6 {[%emt 0:01:32]} 44. g4 {[%emt 0:01:59]} fxg4 {[%emt 0:01:56]} 45. hxg4 {[%emt 0:00:24]} Ra4 {[%emt 0:03:26]} 46. Ke2 {[%emt 0:01:56]} e3 {[%emt 0:06:51]} 47. f3 {[%emt 0:00:42]} Rf4 {[%emt 0:01:08]} 1/2-1/2

[Event "POL-chT 2nd League-4 2020"]
[Site "Poronin"]
[Date "2020.09.09"]
[Round "5.24"]
[White "Bukowska, Katarzyna"]
[Black "Krzysztynska, Anna"]
[Result "0-1"]
[ECO "C48"]
[WhiteElo "1887"]
[BlackElo "1867"]
[Annotator "NA RC"]
[PlyCount "62"]
[EventDate "2020.09.05"]
[EventType "team-tourn"]
[EventCountry "POL"]
[SourceTitle "playchess.com"]
[Source "ChessBase"]
[SourceQuality "1"]
[TimeControl "40/5400+30:900+30"]

1. e4 e5 2. Nf3 Nc6 3. Bb5 Nf6 4. Nc3 d6 5. O-O Bg4 6. h3 Bh5 7. d3 a6 8. Ba4 Be7 9. Be3 O-O 10. g4 Bg6 11. Nd5 Nxd5 12. exd5 Nb8 13. Qd2 f5 14. Bg5 fxg4 15. Bxe7 Qxe7 16. Ng5 gxh3 17. Kh2 Rf4 18. Nxh3 Qh4 19. Qe3 Rxa4 20. f4 Nd7 21. c4 Rb4 22. b3 Bf5 23. Rf3 Bxh3 24. Rxh3 Qxf4+ 25. Qxf4 exf4 26. Rf3 Rf8 27. d4 a5 28. Re1 g5 29. Re7 Rf7 30. Re8+ Kg7 31. Ra8 a4 0-1

[Event "POL-chT 2nd League-4 2020"]
[Site "Poronin"]
[Date "2020.09.10"]
[Round "6.6"]
[White "Polak, Sylwia"]
[Black "Bukowska, Katarzyna"]
[Result "1/2-1/2"]
[ECO "D37"]
[WhiteElo "1590"]
[BlackElo "1887"]
[Annotator "NA RC"]
[PlyCount "98"]
[EventDate "2020.09.05"]
[EventType "team-tourn"]
[EventCountry "POL"]
[SourceTitle "playchess.com"]
[Source "ChessBase"]
[SourceQuality "1"]
[TimeControl "40/5400+30:900+30"]

1. d4 {[%emt 0:00:00]} d5 {[%emt 0:00:00]} 2. c4 {[%emt 0:00:00]} e6 {[%emt 0:00:00]} 3. Nc3 {[%emt 0:00:00]} Nf6 {[%emt 0:00:00]} 4. Nf3 {[%emt 0:00:00]} Be7 {[%emt 0:00:32]} 5. e3 {[%emt 0:00:00]} O-O {[%emt 0:00:27]} 6. Bd3 {[%emt 0:00:06]} c5 {[%emt 0:01:57]} 7. O-O {[%emt 0:00:13]} Nc6 {[%emt 0:01:26]} 8. b3 {[%emt 0:00:40]} cxd4 {[%emt 0:02:55]} 9. exd4 {[%emt 0:00:13]} h6 {[%emt 0:02:39]} 10. Bb2 {[%emt 0:01:12]} Bd6 {[%emt 0:04:55]} 11. Re1 {[%emt 0:01:56]} Bd7 {[%emt 0:02:38]} 12. Qd2 {[%emt 0:11:25]} Rc8 {[%emt 0:04:08]} 13. Rac1 {[%emt 0:03:14]} Re8 {[%emt 0:05:54]} 14. Nb5 {[%emt 0:14:49]} Bb4 {[%emt 0:03:42]} 15. Bc3 {[%emt 0:01:28]} Bf8 {[%emt 0:09:35]} 16. Bb2 {[%emt 0:13:03]} a6 {[%emt 0:04:45]} 17. Nc3 {[%emt 0:00:06]} Bb4 {[%emt 0:04:59]} 18. a3 {[%emt 0:08:24]} Bd6 {[%emt 0:01:49]} 19. c5 {[%emt 0:02:32]} Bb8 {[%emt 0:02:31]} 20. Na4 {[%emt 0:01:08]} Na5 {[%emt 0:04:17]} 21. Qb4 {[%emt 0:01:25]} Bxa4 {[%emt 0:00:26]} 22. Qxa4 {[%emt 0:01:21]} Nc6 {[%emt 0:03:02]} 23. b4 {[%emt 0:03:58]} Nh7 {[%emt 0:02:15]} 24. Qb3 {[%emt 0:03:30]} Qc7 {[%emt 0:01:20]} 25. g3 {[%emt 0:01:33]} Nf6 {[%emt 0:01:28]} 26. a4 {[%emt 0:00:43]} a5 {[%emt 0:02:19]} 27. b5 {[%emt 0:00:41]} Nb4 {[%emt 0:00:12]} 28. Bb1 {[%emt 0:00:29]} Ne4 {[%emt 0:04:32]} 29. Ba3 {[%emt 0:02:41]} f5 {[%emt 0:01:28]} 30. Bxb4 {[%emt 0:00:42]} axb4 {[%emt 0:00:05]} 31. Qxb4 {[%emt 0:00:12]} Qf7 {[%emt 0:00:22]} 32. Qa3 {[%emt 0:05:12]} Rf8 {[%emt 0:01:03]} 33. Ne5 {[%emt 0:03:13]} Bxe5 {[%emt 0:01:23]} 34. dxe5 {[%emt 0:00:01]} f4 {[%emt 0:07:36]} 35. Rxe4 {[%emt 0:10:44]} dxe4 {[%emt 0:02:20]} 36. Bxe4 {[%emt 0:00:04]} Qe7 {[%emt 0:06:50]} 37. Qc3 {[%emt 0:01:06]} Ra8 {[%emt 0:02:49]} 38. a5 {[%emt 0:00:57]} Qf7 {[%emt 0:00:46]} 39. f3 {[%emt 0:00:38]} fxg3 {[%emt 0:01:38]} 40. hxg3 {[%emt 0:00:00]} Rab8 {[%emt 0:00:00]} 41. c6 {[%emt 0:03:19]} bxc6 {[%emt 0:05:25]} 42. Bxc6 {[%emt 0:00:05]} Rfc8 {[%emt 0:00:44]} 43. Qe3 {[%emt 0:07:07]} Qg6 {[%emt 0:05:45]} 44. Kg2 {[%emt 0:00:58]} Rxc6 {[%emt 0:00:21]} 45. Rxc6 {[%emt 0:02:16]} Rxb5 {[%emt 0:00:10]} 46. Qc3 {[%emt 0:01:12]} Qb1 {[%emt 0:01:09]} 47. Rc8+ {[%emt 0:07:34]} Kh7 {[%emt 0:00:10]} 48. Qc2+ {[%emt 0:00:27]} Qxc2+ {[%emt 0:00:08]} 49. Rxc2 {[%emt 0:00:04]} Rxa5 {[%emt 0:00:11]} 1/2-1/2

[Event "POL-chT 2nd League-4 2020"]
[Site "Poronin"]
[Date "2020.09.10"]
[Round "6.17"]
[White "Sochacki, Zenon"]
[Black "Gonsior, Monika"]
[Result "1/2-1/2"]
[ECO "A40"]
[WhiteElo "1885"]
[BlackElo "2001"]
[Annotator "RC"]
[PlyCount "59"]
[EventDate "2020.09.05"]
[EventType "team-tourn"]
[EventCountry "POL"]
[SourceTitle "playchess.com"]
[Source "ChessBase"]
[SourceQuality "1"]
[TimeControl "40/5400+30:900+30"]

1. d4 {[%emt 0:00:00]} e6 {[%emt 0:00:00]} 2. c4 {[%emt 0:00:00]} b6 {[%emt 0:00:00]} 3. a3 {[%emt 0:00:13]} Bb7 {[%emt 0:00:00]} 4. Nc3 {[%emt 0:00:14]} f5 {[%emt 0:00:49]} 5. Nf3 {[%emt 0:01:18]} Nf6 {[%emt 0:00:08]} 6. g3 {[%emt 0:00:54]} Be7 {[%emt 0:01:11]} 7. Bg2 {[%emt 0:00:11]} O-O {[%emt 0:00:09]} 8. O-O {[%emt 0:01:21]} a5 {[%emt 0:00:25]} 9. Rb1 {[%emt 0:03:56]} h6 {[%emt 0:04:35]} 10. b4 {[%emt 0:04:02]} Ne4 {[%emt 0:01:28]} 11. Qc2 {[%emt 0:00:38]} Nxc3 {[%emt 0:01:45]} 12. Qxc3 {[%emt 0:00:26]} Be4 {[%emt 0:00:12]} 13. Nd2 {[%emt 0:01:50]} Bxg2 {[%emt 0:02:04]} 14. Kxg2 {[%emt 0:00:02]} axb4 {[%emt 0:04:01]} 15. axb4 {[%emt 0:02:15]} d5 {[%emt 0:00:26]} 16. Nf3 {[%emt 0:04:48]} Nd7 {[%emt 0:05:13]} 17. cxd5 {[%emt 0:04:50]} exd5 {[%emt 0:00:44]} 18. b5 {[%emt 0:00:54]} Bd6 {[%emt 0:03:41]} 19. Ne5 {[%emt 0:03:58]} Nf6 {[%emt 0:06:04]} 20. Qc6 {[%emt 0:02:50]} Ra4 {[%emt 0:02:35]} 21. Bb2 {[%emt 0:23:53]} Qa8 {[%emt 0:05:12]} 22. Ra1 {[%emt 0:04:11]} Qxc6 {[%emt 0:01:38]} 23. Nxc6 {[%emt 0:00:50]} Rfa8 {[%emt 0:01:02]} 24. f3 {[%emt 0:01:53]} Kf7 {[%emt 0:03:37]} 25. Rxa4 {[%emt 0:02:34]} Rxa4 {[%emt 0:00:08]} 26. Ra1 {[%emt 0:00:07]} Rc4 {[%emt 0:04:26]} 27. Rc1 {[%emt 0:00:02]} Ke6 {[%emt 0:04:55]} 28. Nd8+ {[%emt 0:07:56]} Ke7 {[%emt 0:01:09]} 29. Nc6+ {[%emt 0:00:12]} Ke6 {[%emt 0:01:08]} 30. Nd8+ {[%emt 0:00:12]} 1/2-1/2

[Event "POL-chT 2nd League-4 2020"]
[Site "Poronin"]
[Date "2020.09.10"]
[Round "6.21"]
[White "Turecki, Stanislaw"]
[Black "Pasionek, Ariel"]
[Result "1-0"]
[ECO "B01"]
[WhiteElo "1785"]
[BlackElo "1894"]
[Annotator "NA RC"]
[PlyCount "81"]
[EventDate "2020.09.05"]
[EventType "team-tourn"]
[EventCountry "POL"]
[SourceTitle "playchess.com"]
[Source "ChessBase"]
[SourceQuality "1"]
[TimeControl "40/5400+30:900+30"]

1. e4 {[%emt 0:00:00]} d5 {[%emt 0:00:05]} 2. exd5 {[%emt 0:00:22]} Qxd5 {[%emt 0:00:21]} 3. Nc3 {[%emt 0:00:31]} Qa5 {[%emt 0:00:11]} 4. d4 {[%emt 0:01:13]} Nf6 {[%emt 0:01:19]} 5. Bc4 {[%emt 0:01:47]} c6 {[%emt 0:01:57]} 6. Nge2 {[%emt 0:02:38]} Bf5 {[%emt 0:08:29]} 7. O-O {[%emt 0:01:51]} e6 {[%emt 0:03:59]} 8. Ng3 {[%emt 0:02:39]} Bd6 {[%emt 0:11:02]} 9. a3 {[%emt 0:07:52]} O-O {[%emt 0:09:48]} 10. Nxf5 {[%emt 0:07:54]} Qxf5 {[%emt 0:00:59]} 11. h3 {[%emt 0:01:45]} Nbd7 {[%emt 0:04:05]} 12. Bd2 {[%emt 0:03:06]} Nb6 {[%emt 0:28:58]} 13. g4 {[%emt 0:05:47]} Nxg4 {[%emt 0:05:14]} 14. hxg4 {[%emt 0:00:54]} Qf6 {[%emt 0:00:05]} 15. Ne4 {[%emt 0:06:46]} Qxd4 {[%emt 0:03:18]} 16. Nxd6 {[%emt 0:01:00]} Nxc4 {[%emt 0:00:18]} 17. Nxc4 {[%emt 0:00:13]} Qxc4 {[%emt 0:00:02]} 18. b3 {[%emt 0:03:48]} Qe4 {[%emt 0:02:25]} 19. Re1 {[%emt 0:01:20]} Qg6 {[%emt 0:00:05]} 20. Bc3 {[%emt 0:13:35]} Rad8 {[%emt 0:02:32]} 21. Qe2 {[%emt 0:00:20]} h5 {[%emt 0:00:10]} 22. Qe4 {[%emt 0:01:54]} Qg5 {[%emt 0:02:54]} 23. Re3 {[%emt 0:01:39]} Rd5 {[%emt 0:01:59]} 24. Rg3 {[%emt 0:01:49]} h4 {[%emt 0:00:40]} 25. f4 {[%emt 0:01:32]} Qh6 {[%emt 0:00:22]} 26. g5 {[%emt 0:01:16]} Qh5 {[%emt 0:00:31]} 27. Qf3 {[%emt 0:00:23]} Qg6 {[%emt 0:00:04]} 28. Rg2 {[%emt 0:00:32]} Rfd8 {[%emt 0:03:05]} 29. Re1 {[%emt 0:02:21]} Qf5 {[%emt 0:03:50]} 30. Kh2 {[%emt 0:01:19]} Rc5 {[%emt 0:03:04]} 31. Re3 {[%emt 0:01:36]} Rdd5 {[%emt 0:00:42]} 32. Rge2 {[%emt 0:02:35]} Rd1 {[%emt 0:00:37]} 33. Re5 {[%emt 0:00:42]} Rxe5 {[%emt 0:00:15]} 34. Bxe5 {[%emt 0:00:55]} Rc1 {[%emt 0:00:52]} 35. Qd3 {[%emt 0:04:08]} Qg4 {[%emt 0:01:20]} 36. Rg2 {[%emt 0:00:12]} Qh5 {[%emt 0:00:02]} 37. g6 {[%emt 0:01:43]} fxg6 {[%emt 0:01:10]} 38. Rxg6 {[%emt 0:00:58]} Rd1 {[%emt 0:00:19]} 39. Rxg7+ {[%emt 0:01:50]} Kf8 {[%emt 0:00:01]} 40. Qe3 {[%emt 0:00:00]} Qf5 {[%emt 0:00:00]} 41. Qc5+ {[%emt 0:02:46]} 1-0

[Event "POL-chT 2nd League-4 2020"]
[Site "Poronin"]
[Date "2020.09.10"]
[Round "6.22"]
[White "Wojciechowski, Beniamin"]
[Black "Rainer, Piotr"]
[Result "0-1"]
[ECO "B24"]
[WhiteElo "1814"]
[BlackElo "1641"]
[Annotator "NA RC"]
[PlyCount "62"]
[EventDate "2020.09.05"]
[EventType "team-tourn"]
[EventCountry "POL"]
[SourceTitle "playchess.com"]
[Source "ChessBase"]
[SourceQuality "1"]
[TimeControl "40/5400+30:900+30"]

1. e4 c5 2. Nc3 Nc6 3. g3 e5 4. Bg2 Nf6 5. d3 Be7 6. Nge2 O-O 7. O-O Nd4 8. a4 d6 9. h3 h5 10. Be3 Nh7 11. f4 f5 12. Nd5 fxe4 13. dxe4 Be6 14. c3 Bxd5 15. cxd4 exd4 16. exd5 dxe3 17. Qd3 Bf6 18. Qxe3 Re8 19. Qd2 Qe7 20. Rae1 Qe3+ 21. Qxe3 Rxe3 22. Bf3 Bxb2 23. Bxh5 Nf6 24. Bf3 Rae8 25. Kf2 Ra3 26. Rb1 Ra2 27. Ke1 Bc3+ 28. Kd1 Bb4 29. Rf2 Ne4 30. Bxe4 Rxe4 31. Nc3 Rd4+ 0-1

[Event "POL-chT 2nd League-4 2020"]
[Site "Poronin"]
[Date "2020.09.10"]
[Round "6.24"]
[White "Krzysztynska, Anna"]
[Black "Siwek, Kinga"]
[Result "1-0"]
[ECO "B24"]
[WhiteElo "1867"]
[BlackElo "1804"]
[Annotator "NA RC"]
[PlyCount "71"]
[EventDate "2020.09.05"]
[EventType "team-tourn"]
[EventCountry "POL"]
[SourceTitle "playchess.com"]
[Source "ChessBase"]
[SourceQuality "1"]
[TimeControl "40/5400+30:900+30"]

1. e4 c5 2. Nc3 Nc6 3. g3 g6 4. Bg2 Bg7 5. d3 e5 6. f4 d6 7. Nge2 Nge7 8. Be3 Nd4 9. O-O O-O 10. h3 Rb8 11. g4 f5 12. Ng3 Bd7 13. Kh2 Qc8 14. gxf5 gxf5 15. Nd5 Nxd5 16. exd5 Kh8 17. a4 c4 18. Ra3 cxd3 19. Rxd3 Bxa4 20. b3 Bd7 21. Bxd4 exd4 22. Rxd4 Be8 23. Rd3 Qd7 24. Re1 Bf7 25. Rde3 Rfe8 26. Qd3 Rxe3 27. Rxe3 Bg6 28. h4 Rf8 29. h5 Be8 30. Bh3 Bh6 31. Rf3 Qe7 32. Nxf5 Rxf5 33. Bxf5 Qh4+ 34. Kg2 Bxf4 35. Qd4+ Kg8 36. Be6+ 1-0

[Event "POL-chT 2nd League-4 2020"]
[Site "Poronin"]
[Date "2020.09.11"]
[Round "7.6"]
[White "Chmiel, Dominika"]
[Black "Dabrowska, Aleksandra"]
[Result "1-0"]
[ECO "B18"]
[WhiteElo "2023"]
[BlackElo "1566"]
[Annotator "RC"]
[PlyCount "105"]
[EventDate "2020.09.05"]
[EventType "team-tourn"]
[EventCountry "POL"]
[SourceTitle "playchess.com"]
[Source "ChessBase"]
[SourceQuality "1"]
[WhiteTeam "Victoria Chroscice"]
[BlackTeam "Skoczek Siedlce"]
[WhiteTeamCountry "POL"]
[TimeControl "40/5400+30:900+30"]

1. e4 {[%emt 0:00:00]} c6 {[%emt 0:00:00]} 2. d4 {[%emt 0:00:00]} d5 {[%emt 0:00:00]} 3. Nd2 {[%emt 0:00:00]} dxe4 {[%emt 0:00:25]} 4. Nxe4 {[%emt 0:00:00]} Bf5 {[%emt 0:00:43]} 5. Ng3 {[%emt 0:00:29]} Bg6 {[%emt 0:00:11]} 6. Bc4 {[%emt 0:02:04]} e6 {[%emt 0:01:02]} 7. N1e2 {[%emt 0:01:51]} Bd6 {[%emt 0:04:20]} 8. h4 {[%emt 0:04:15]} h6 {[%emt 0:01:47]} 9. Nf4 {[%emt 0:01:46]} Bxf4 {[%emt 0:00:53]} 10. Bxf4 {[%emt 0:00:05]} Nf6 {[%emt 0:00:42]} 11. c3 {[%emt 0:05:06]} Nbd7 {[%emt 0:05:39]} 12. h5 {[%emt 0:04:07]} Bh7 {[%emt 0:00:22]} 13. Qe2 {[%emt 0:00:57]} Nb6 {[%emt 0:03:00]} 14. Bd3 {[%emt 0:06:01]} Bxd3 {[%emt 0:00:32]} 15. Qxd3 {[%emt 0:00:05]} Qd5 {[%emt 0:06:37]} 16. f3 {[%emt 0:19:54]} Qc4 {[%emt 0:04:43]} 17. Qxc4 {[%emt 0:14:27]} Nxc4 {[%emt 0:00:49]} 18. b3 {[%emt 0:00:09]} Nd5 {[%emt 0:10:01]} 19. Bc1 {[%emt 0:05:08]} Nce3 {[%emt 0:01:29]} 20. Bxe3 {[%emt 0:01:38]} Nxe3 {[%emt 0:00:08]} 21. Kf2 {[%emt 0:00:27]} Nd5 {[%emt 0:01:18]} 22. c4 {[%emt 0:03:34]} Nb4 {[%emt 0:01:00]} 23. Rhd1 {[%emt 0:01:37]} Rd8 {[%emt 0:01:08]} 24. Ne2 {[%emt 0:01:24]} O-O {[%emt 0:00:37]} 25. a3 {[%emt 0:00:39]} Na6 {[%emt 0:00:04]} 26. Nc3 {[%emt 0:00:33]} Rd7 {[%emt 0:00:33]} 27. Ra2 {[%emt 0:01:33]} Rfd8 {[%emt 0:00:45]} 28. Rad2 {[%emt 0:00:23]} Nc5 {[%emt 0:03:02]} 29. b4 {[%emt 0:07:15]} Nb3 {[%emt 0:01:10]} 30. Rd3 {[%emt 0:00:06]} Rxd4 {[%emt 0:01:52]} 31. Ke3 {[%emt 0:04:22]} Rxd3+ {[%emt 0:03:11]} 32. Rxd3 {[%emt 0:00:04]} Rxd3+ {[%emt 0:00:14]} 33. Kxd3 {[%emt 0:00:04]} e5 {[%emt 0:00:14]} 34. Ne2 {[%emt 0:00:43]} c5 {[%emt 0:11:09]} 35. Ke4 {[%emt 0:00:35]} Nd4 {[%emt 0:03:34]} 36. Nc3 {[%emt 0:01:50]} cxb4 {[%emt 0:01:41]} 37. axb4 {[%emt 0:00:06]} Kf8 {[%emt 0:01:09]} 38. b5 {[%emt 0:04:45]} Ke7 {[%emt 0:04:50]} 39. Kxe5 {[%emt 0:02:26]} Ne6 {[%emt 0:00:17]} 40. Ne4 {[%emt 0:00:00]} Kd7 {[%emt 0:00:00]} 41. g4 {[%emt 0:08:50]} Ke7 {[%emt 0:10:27]} 42. f4 {[%emt 0:02:52]} a5 {[%emt 0:05:29]} 43. f5 {[%emt 0:03:53]} f6+ {[%emt 0:04:54]} 44. Kd5 {[%emt 0:00:41]} Nf8 {[%emt 0:04:37]} 45. Nc5 {[%emt 0:00:57]} b6 {[%emt 0:00:16]} 46. Na4 {[%emt 0:00:25]} Nd7 {[%emt 0:00:03]} 47. Kc6 {[%emt 0:01:06]} Ne5+ {[%emt 0:00:20]} 48. Kxb6 {[%emt 0:00:19]} Nxc4+ {[%emt 0:00:13]} 49. Kc7 {[%emt 0:00:47]} Nd6 {[%emt 0:01:16]} 50. b6 {[%emt 0:01:06]} Ne8+ {[%emt 0:00:50]} 51. Kc6 {[%emt 0:00:32]} Nd6 {[%emt 0:00:07]} 52. Nc5 {[%emt 0:00:44]} a4 {[%emt 0:00:18]} 53. Nxa4 {[%emt 0:00:07]} 1-0

[Event "POL-chT 2nd League-4 2020"]
[Site "Poronin"]
[Date "2020.09.11"]
[Round "7.10"]
[White "Helis, Tadeusz"]
[Black "Szmyd, Marek"]
[Result "1-0"]
[ECO "D37"]
[WhiteElo "2157"]
[BlackElo "1874"]
[Annotator "RC"]
[PlyCount "95"]
[EventDate "2020.09.05"]
[EventType "team-tourn"]
[EventCountry "POL"]
[SourceTitle "playchess.com"]
[Source "ChessBase"]
[SourceQuality "1"]
[WhiteTeam "SILESIA Raciborz"]
[BlackTeam "Goniec Zarow"]
[TimeControl "40/5400+30:900+30"]

1. d4 {[%emt 0:00:00]} d5 {[%emt 0:01:27]} 2. Nf3 {[%emt 0:00:00]} e6 {[%emt 0:03:39]} 3. c4 {[%emt 0:00:00]} Nf6 {[%emt 0:00:29]} 4. Nc3 {[%emt 0:00:00]} b6 {[%emt 0:05:28]} 5. cxd5 {[%emt 0:00:34]} exd5 {[%emt 0:00:58]} 6. Bg5 {[%emt 0:01:20]} Be7 {[%emt 0:04:05]} 7. e3 {[%emt 0:00:39]} O-O {[%emt 0:00:51]} 8. Be2 {[%emt 0:02:23]} Bb7 {[%emt 0:01:04]} 9. O-O {[%emt 0:00:26]} Nbd7 {[%emt 0:05:31]} 10. Rc1 {[%emt 0:02:24]} Ne4 {[%emt 0:03:18]} 11. Bf4 {[%emt 0:13:27]} Bd6 {[%emt 0:10:37]} 12. Bxd6 {[%emt 0:03:06]} Nxd6 {[%emt 0:01:11]} 13. Nb5 {[%emt 0:00:53]} Nxb5 {[%emt 0:01:31]} 14. Bxb5 {[%emt 0:00:03]} a6 {[%emt 0:06:30]} 15. Bc6 {[%emt 0:05:27]} Bxc6 {[%emt 0:01:19]} 16. Rxc6 {[%emt 0:00:03]} Rc8 {[%emt 0:00:13]} 17. Qc2 {[%emt 0:02:01]} Nb8 {[%emt 0:00:52]} 18. Rc3 {[%emt 0:00:05]} f6 {[%emt 0:00:57]} 19. Rc1 {[%emt 0:00:24]} c6 {[%emt 0:04:58]} 20. Ne1 {[%emt 0:00:56]} Qd6 {[%emt 0:05:43]} 21. Nd3 {[%emt 0:01:45]} a5 {[%emt 0:06:48]} 22. Qa4 {[%emt 0:07:47]} Rf7 {[%emt 0:02:45]} 23. b4 {[%emt 0:04:15]} Ra7 {[%emt 0:05:51]} 24. bxa5 {[%emt 0:03:47]} Rxa5 {[%emt 0:05:26]} 25. Qb4 {[%emt 0:00:30]} Qd7 {[%emt 0:08:55]} 26. a3 {[%emt 0:06:32]} Qc7 {[%emt 0:03:59]} 27. h3 {[%emt 0:00:36]} Na6 {[%emt 0:02:00]} 28. Qb3 {[%emt 0:00:19]} Kh8 {[%emt 0:01:41]} 29. Nb4 {[%emt 0:03:03]} Nxb4 {[%emt 0:00:23]} 30. axb4 {[%emt 0:00:03]} Ra7 {[%emt 0:02:06]} 31. b5 {[%emt 0:00:14]} Qd7 {[%emt 0:02:48]} 32. bxc6 {[%emt 0:02:06]} Qc7 {[%emt 0:01:05]} 33. Qxd5 {[%emt 0:00:07]} Rd8 {[%emt 0:00:32]} 34. Qb3 {[%emt 0:01:01]} Rd6 {[%emt 0:00:46]} 35. Qb4 {[%emt 0:01:46]} h6 {[%emt 0:00:48]} 36. e4 {[%emt 0:03:06]} Ra8 {[%emt 0:00:23]} 37. d5 {[%emt 0:00:12]} f5 {[%emt 0:00:14]} 38. Rd1 {[%emt 0:00:47]} fxe4 {[%emt 0:00:17]} 39. Qxe4 {[%emt 0:00:10]} Rad8 {[%emt 0:00:19]} 40. Rcd3 {[%emt 0:00:00]} b5 {[%emt 0:00:00]} 41. h4 {[%emt 0:02:17]} Rf8 {[%emt 0:05:40]} 42. h5 {[%emt 0:00:37]} Rdf6 {[%emt 0:00:51]} 43. d6 {[%emt 0:02:48]} Qa7 {[%emt 0:01:17]} 44. Rf3 {[%emt 0:00:16]} b4 {[%emt 0:04:46]} 45. d7 {[%emt 0:00:09]} Qc7 {[%emt 0:01:07]} 46. Rxf6 {[%emt 0:00:18]} gxf6 {[%emt 0:00:08]} 47. Qxb4 {[%emt 0:00:13]} Rg8 {[%emt 0:01:45]} 48. Qd6 {[%emt 0:00:16]} 1-0